DepartmentFamily,Entity,Date,ExpenseType,ExpenseArea,Supplier,Transaction Number,Amount,Description,Supplier Type,VATRegistrationNumber
DBT,The Insolvency Service,01/06/2023,"Legal, Translation & Consultancy",People & Communications,Government Legal Department,300046089,"1,298.95",Legal Costs Other,Public Sector,888823066
DBT,The Insolvency Service,01/06/2023,ICT,Change and Technology Services,Agilisys Ltd,300046394,"9,450.00",IT - Run,Large,791711713
DBT,The Insolvency Service,01/06/2023,Staff Costs - Non-Perms,Chief Executive Office,Allen Lane Limited,300046392,"15,248.95",Agency Staff & Contractor Costs,,835970985
DBT,The Insolvency Service,02/06/2023,Estates - Property,"Finance, Commercial, Sustainability & Property",Amas Ltd - (Rent & Property Costs),300046446,"11,268.00",Landlord Service Charge,,
DBT,The Insolvency Service,02/06/2023,"Legal, Translation & Consultancy",Investigations & Enforcement Services,K International Plc,300046448,539.73,Translation and Transcription Services,SME,600413800
DBT,The Insolvency Service,02/06/2023,Legal - Costs of Criminal Prosecutions and Advice,Legal Services Division,18 Red Lion Court Chambers,300046447,527.64,Costs of Criminal Prosecutions and Advice,SME,766793665
DBT,The Insolvency Service,02/06/2023,Legal - Costs of Criminal Prosecutions and Advice,Legal Services Division,18 Red Lion Court Chambers,300046453,"2,706.00",Costs of Criminal Prosecutions and Advice,SME,766793665
DBT,The Insolvency Service,02/06/2023,Legal - Costs of Criminal Prosecutions and Advice,Legal Services Division,18 Red Lion Court Chambers,300046483,"1,026.00",Costs of Criminal Prosecutions and Advice,SME,766793665
DBT,The Insolvency Service,02/06/2023,Legal - Costs of Criminal Prosecutions and Advice,Legal Services Division,18 Red Lion Court Chambers,300046487,812.44,Costs of Criminal Prosecutions and Advice,SME,766793665
DBT,The Insolvency Service,02/06/2023,Legal - Costs of Criminal Prosecutions and Advice,Legal Services Division,Wace Morgan Solicitors,300046459,"2,796.16",Costs of Criminal Prosecutions and Advice,SME,220166160
DBT,The Insolvency Service,02/06/2023,Legal - Costs of Criminal Prosecutions and Advice,Legal Services Division,Park Square Barristers,300046449,798.00,Costs of Criminal Prosecutions and Advice,SME,875308991
DBT,The Insolvency Service,02/06/2023,Legal - Costs of Criminal Prosecutions and Advice,Legal Services Division,McWilliam Buck Limited t/a David Buck & Co,300046455,"6,092.75",Costs of Criminal Prosecutions and Advice,,692834691
DBT,The Insolvency Service,02/06/2023,Legal - Costs of Civil Litigation Disqualifications,Legal Services Division,9 Stone Buildings ,300046458,"1,259.40",Civil Litigation Disqualifications Counsel Fees,SME,168754953
DBT,The Insolvency Service,02/06/2023,Staff Costs - Non-Perms,Business Service Division,Randstad Solutions Ltd,300046461,"1,283.16",Agency Staff & Contractor Costs,Large,492435726
DBT,The Insolvency Service,02/06/2023,Staff Costs - Non-Perms,Business Service Division,Randstad Solutions Ltd,300046462,"9,606.37",Agency Staff & Contractor Costs,Large,492435726
DBT,The Insolvency Service,02/06/2023,Staff Costs - Non-Perms,Change and Technology Services,Randstad Solutions Ltd,300046464,765.00,Agency Staff & Contractor Costs,Large,492435726
DBT,The Insolvency Service,02/06/2023,Estates - Property,"Finance, Commercial, Sustainability & Property",Portal Chatham LLP,300046486,900.00,Landlord Service Charge,SME,933428619
DBT,The Insolvency Service,02/06/2023,Staff Costs - Non-Perms,"Finance, Commercial, Sustainability & Property",Spinwell Global Ltd,300046388,"3,281.16",Agency Staff & Contractor Costs,,257189569
DBT,The Insolvency Service,02/06/2023,ICT,Projects,Prolifics Inc,300046184,"29,100.00",IT - Transform,,639210253
DBT,The Insolvency Service,02/06/2023,Legal - Costs of Civil Litigation Disqualifications,Legal Services Division,5 Stone Buildings,300046456,928.80,Civil Litigation Disqualifications Counsel Fees,,939600703
DBT,The Insolvency Service,05/06/2023,"Legal, Translation & Consultancy",People & Communications,Government Legal Department,300046090,534.00,Legal Costs Other,Public Sector,888823066
DBT,The Insolvency Service,05/06/2023,Other Costs,Shared Contracts,Equifax Ltd,300046460,"19,902.00",Financial Searches,Large,565629213
DBT,The Insolvency Service,05/06/2023,Off-Site Storage,Shared Contracts,Iron Mountain (Uk) Ltd,300046445,"34,277.26",Storage - OR,Large,607937516
DBT,The Insolvency Service,05/06/2023,Legal - Costs of Recovering Civil Costs Awarded,Legal Services Division,Gowling WLG (UK) LLP,300046491,"9,999.39",Recovery of Civil Proceedings Costs Awarded,,858698838
DBT,The Insolvency Service,05/06/2023,Legal - Costs of Civil Litigation Disqualifications,Legal Services Division,Gowling WLG (UK) LLP,300046492,"9,765.00",Costs of Civil Litigation Disqualifications,,858698838
DBT,The Insolvency Service,05/06/2023,Legal - Outsourced Investigation,Official Receiver Services,Gowling WLG (UK) LLP,300046494,"6,332.50",Solicitors Investigations,,858698838
DBT,The Insolvency Service,05/06/2023,HR,People & Communications,Health Partners Ltd,300046450,"2,772.70",Staff Welfare,,806426440
DBT,The Insolvency Service,05/06/2023,ICT,Change and Technology Services,Netcompany UK Ltd,300046532,"56,605.20",IT - Run,Large,171809009
DBT,The Insolvency Service,05/06/2023,Legal - Costs of Civil Litigation Disqualifications,Legal Services Division,Selbourne Chambers,300046413,706.67,Civil Litigation Disqualifications Counsel Fees,SME,1036299146
DBT,The Insolvency Service,05/06/2023,Staff Costs - Non-Perms,Investigations & Enforcement Services,Red Snapper Recruitment,300046479,"1,566.96",Agency Staff & Contractor Costs,SME,835435718
DBT,The Insolvency Service,05/06/2023,Staff Costs - Non-Perms,Change and Technology Services,Talent International (UK) Ltd,300046521,"13,860.00",Agency Staff & Contractor Costs,,176415692
DBT,The Insolvency Service,05/06/2023,Staff Costs - Non-Perms,Change and Technology Services,Talent International (UK) Ltd,300046522,"8,853.60",Agency Staff & Contractor Costs,,176415692
DBT,The Insolvency Service,05/06/2023,Staff Costs - Non-Perms,Change and Technology Services,Talent International (UK) Ltd,300046526,"17,608.54",Agency Staff & Contractor Costs,,176415692
DBT,The Insolvency Service,06/06/2023,ICT,Change and Technology Services,Ibm Uk Ltd,300046481,"17,050.00",IT - Run,Large,107328000
DBT,The Insolvency Service,06/06/2023,Other Costs,Official Receiver Services,Royal Mail (Redirection),300046498,"4,029.00",Finance - OR Case Disbursements,Large,
DBT,The Insolvency Service,06/06/2023,ICT,People & Communications,Nla Media Access Limited,300046519,"14,639.76",IT - Run,SME,
DBT,The Insolvency Service,06/06/2023,ICT,People & Communications,Nla Media Access Limited,300046520,"1,463.98",IT - Run,SME,
DBT,The Insolvency Service,06/06/2023,Off-Site Storage,Official Receiver Services,Restore Plc (Records Management),300046484,"10,762.96",Storage - HQ,Large,843863011
DBT,The Insolvency Service,06/06/2023,ICT,Change and Technology Services,Geoff Smith Associates Ltd,300046500,"19,387.19",IT - Run,SME,813047166
DBT,The Insolvency Service,06/06/2023,Estates - Property,"Finance, Commercial, Sustainability & Property",Plymouth City Council (Rent),300046546,"20,007.50",Rent,Public Sector,
DBT,The Insolvency Service,06/06/2023,ICT,Change and Technology Services,Netcompany UK Ltd,300046547,"63,801.60",IT - Run,Large,171809009
DBT,The Insolvency Service,06/06/2023,Staff Costs - Non-Perms,Projects,SmartSourcing,300046531,"9,878.98",Agency Staff & Contractor Costs,SME,788507869
DBT,The Insolvency Service,06/06/2023,Staff Costs - Non-Perms,Projects,SmartSourcing,300046533,"16,880.64",Agency Staff & Contractor Costs,SME,788507869
DBT,The Insolvency Service,06/06/2023,Staff Costs - Non-Perms,Projects,SmartSourcing,300046534,"25,416.00",Agency Staff & Contractor Costs,SME,788507869
DBT,The Insolvency Service,06/06/2023,Staff Costs - Non-Perms,Projects,SmartSourcing,300046536,"17,480.64",Agency Staff & Contractor Costs,SME,788507869
DBT,The Insolvency Service,06/06/2023,Staff Costs - Non-Perms,Projects,SmartSourcing,300046537,"15,424.51",Agency Staff & Contractor Costs,SME,788507869
DBT,The Insolvency Service,06/06/2023,Staff Costs - Non-Perms,Chief Executive Office,SmartSourcing,300046544,"22,704.77",Agency Staff & Contractor Costs,SME,788507869
DBT,The Insolvency Service,06/06/2023,Off-Site Storage,Official Receiver Services,Crown Records Management,300046530,"1,232.74",Storage - HQ,SME,902181658
DBT,The Insolvency Service,06/06/2023,Legal - Costs of Civil Litigation Disqualifications,Legal Services Division,Guildhall Chambers,300046606,770.00,Civil Litigation Disqualifications Counsel Fees,SME,985140309
DBT,The Insolvency Service,06/06/2023,Estates - Property,Projects,Advanced 365 Limited,300046529,"3,392.40",Property Major Works,Large,927547983
DBT,The Insolvency Service,06/06/2023,ICT,Change and Technology Services,Charterhouse Voice and Data Limited,300046485,"25,005.53",Telephones - Charges,,311389028
DBT,The Insolvency Service,06/06/2023,Staff Costs - Non-Perms,Investigations & Enforcement Services,Red Snapper Recruitment,300046469,"1,958.70",Agency Staff & Contractor Costs,SME,835435718
DBT,The Insolvency Service,06/06/2023,Staff Costs - Non-Perms,Investigations & Enforcement Services,Red Snapper Recruitment,300046470,"1,958.70",Agency Staff & Contractor Costs,SME,835435718
DBT,The Insolvency Service,06/06/2023,Staff Costs - Non-Perms,Investigations & Enforcement Services,Red Snapper Recruitment,300046471,"4,290.00",Agency Staff & Contractor Costs,SME,835435718
DBT,The Insolvency Service,06/06/2023,Staff Costs - Non-Perms,Investigations & Enforcement Services,Red Snapper Recruitment,300046472,"1,958.70",Agency Staff & Contractor Costs,SME,835435718
DBT,The Insolvency Service,06/06/2023,Staff Costs - Non-Perms,Investigations & Enforcement Services,Red Snapper Recruitment,300046473,"1,958.70",Agency Staff & Contractor Costs,SME,835435718
DBT,The Insolvency Service,06/06/2023,Staff Costs - Non-Perms,Investigations & Enforcement Services,Red Snapper Recruitment,300046474,"1,958.70",Agency Staff & Contractor Costs,SME,835435718
DBT,The Insolvency Service,06/06/2023,Staff Costs - Non-Perms,Investigations & Enforcement Services,Red Snapper Recruitment,300046475,"1,958.70",Agency Staff & Contractor Costs,SME,835435718
DBT,The Insolvency Service,06/06/2023,Staff Costs - Non-Perms,Investigations & Enforcement Services,Red Snapper Recruitment,300046476,"1,958.70",Agency Staff & Contractor Costs,SME,835435718
DBT,The Insolvency Service,06/06/2023,Staff Costs - Non-Perms,Investigations & Enforcement Services,Red Snapper Recruitment,300046477,"1,958.70",Agency Staff & Contractor Costs,SME,835435718
DBT,The Insolvency Service,06/06/2023,Staff Costs - Non-Perms,Investigations & Enforcement Services,Red Snapper Recruitment,300046478,"1,958.70",Agency Staff & Contractor Costs,SME,835435718
DBT,The Insolvency Service,06/06/2023,Staff Costs - Non-Perms,Business Service Division,Randstad Solutions Ltd,300046463,"1,236.92",Agency Staff & Contractor Costs,Large,492435726
DBT,The Insolvency Service,06/06/2023,Staff Costs - Non-Perms,Business Service Division,Randstad Solutions Ltd,300046465,953.70,Agency Staff & Contractor Costs,Large,492435726
DBT,The Insolvency Service,06/06/2023,ICT,Change and Technology Services,Phoenix Software Limited,300046467,"1,009,816.46",IT - Run,SME,755349015
DBT,The Insolvency Service,06/06/2023,ICT,Change and Technology Services,Phoenix Software Limited,300046468,"634,995.07",IT - Run,SME,755349015
DBT,The Insolvency Service,06/06/2023,Legal - Costs of Civil Litigation Winding Up,Legal Services Division,Erskine Chambers,300046607,"2,334.00",Civil Litigation Winding Up Counsel Fees,,890956081
DBT,The Insolvency Service,06/06/2023,Estates - Property,"Finance, Commercial, Sustainability & Property",CBRE Limited- Chatham,300046501,"2,020.43",Landlord Service Charge,,736317923
DBT,The Insolvency Service,06/06/2023,Staff Costs - Non-Perms,Projects,Talent International (UK) Ltd,300046523,"5,760.00",Agency Staff & Contractor Costs,,176415692
DBT,The Insolvency Service,07/06/2023,ICT,Change and Technology Services,Bt Telephone Payment Centre,300046541,"7,054.06",Telephones - Charges,Large,245719348
DBT,The Insolvency Service,07/06/2023,Legal - Costs of Civil Litigation Winding Up,Legal Services Division,Gowling WLG (UK) LLP,300046493,"11,615.90",Costs of Civil Litigation Winding Up,,858698838
DBT,The Insolvency Service,07/06/2023,ICT,Investigations & Enforcement Services,Intaforensics Ltd,300046658,"5,808.00",IT - Run,,900353372
DBT,The Insolvency Service,07/06/2023,Legal - Costs of Civil Litigation Disqualifications,Legal Services Division,Exchange Chambers,300046634,540.00,Civil Litigation Disqualifications Counsel Fees,SME,
DBT,The Insolvency Service,07/06/2023,ICT,Change and Technology Services,Bang Communications,300046659,"12,840.00",IT - Run,Large,569978254
DBT,The Insolvency Service,07/06/2023,Estates - Property,"Finance, Commercial, Sustainability & Property",Dwf Law LLP,300046624,599.22,Estates Professional Services,,
DBT,The Insolvency Service,07/06/2023,"Legal, Translation & Consultancy","Finance, Commercial, Sustainability & Property",Dwf Law LLP,300046637,"71,086.99",Legal Costs Other,,
DBT,The Insolvency Service,07/06/2023,Legal - Outsourced Investigation,Investigations & Enforcement Services,Tlt Llp,300046497,"51,012.44",Solicitors Investigations,Large,3574583240
DBT,The Insolvency Service,07/06/2023,Staff Costs - Perms,Shared Contracts,Edenred (UK Group) Limited,300046543,"58,425.00",Staff Costs - Perms,,
DBT,The Insolvency Service,07/06/2023,ICT,Change and Technology Services,Netcompany UK Ltd,300046548,584.10,IT - Run,Large,171809009
DBT,The Insolvency Service,07/06/2023,Staff Costs - Non-Perms,Change and Technology Services,SmartSourcing,300046535,"12,844.42",Agency Staff & Contractor Costs,SME,788507869
DBT,The Insolvency Service,07/06/2023,Staff Costs - Non-Perms,Projects,SmartSourcing,300046577,"20,880.00",Outside IR35 Non Perm Resource,SME,788507869
DBT,The Insolvency Service,07/06/2023,Off-Site Storage,Official Receiver Services,Purdie Worldwide,300046617,"1,116.83",Storage - HQ,Large,208569880
DBT,The Insolvency Service,07/06/2023,ICT,Change and Technology Services,Advanced 365 Limited,300046186,"1,381.06",IT - Run,Large,927547983
DBT,The Insolvency Service,07/06/2023,ICT,Change and Technology Services,Advanced 365 Limited,300046528,"2,515.33",IT - Run,Large,927547983
DBT,The Insolvency Service,07/06/2023,Legal - Costs of Civil Litigation Disqualifications,Legal Services Division,Mills & Reeve LLP,300046495,"1,171.94",Costs of Civil Litigation Disqualifications,Large,104834588
DBT,The Insolvency Service,07/06/2023,Legal - Costs of Civil Litigation Disqualifications,Legal Services Division,Mills & Reeve LLP,300046495,"1,138.00",Costs of Civil Litigation Disqualifications,Large,104834588
DBT,The Insolvency Service,07/06/2023,Legal - Costs of Civil Litigation Disqualifications,Legal Services Division,No 5 Barristers Chambers,300046412,819.00,Civil Litigation Disqualifications Counsel Fees,SME,871522820
DBT,The Insolvency Service,07/06/2023,ICT,Projects,Charterhouse Voice and Data Limited,300045658,"4,410.00",IT - Run,,311389028
DBT,The Insolvency Service,07/06/2023,Estates - Property,"Finance, Commercial, Sustainability & Property",Exeter City Council (Rent/Ins),300046639,"50,346.30",Rent,Public Sector,
DBT,The Insolvency Service,07/06/2023,Other Costs,Official Receiver Services,Controlaccount PLC,300046645,738.00,Financial Searches,SME,945758964
DBT,The Insolvency Service,07/06/2023,Other Costs,Investigations & Enforcement Services,Controlaccount PLC,300046649,540.00,Financial Searches,SME,945758964
DBT,The Insolvency Service,07/06/2023,Other Costs,Official Receiver Services,Controlaccount PLC,300046651,"9,114.00",Financial Searches,SME,945758964
DBT,The Insolvency Service,07/06/2023,Legal - Costs of Civil Litigation Disqualifications,Legal Services Division,5 Stone Buildings (Chambers Account),300046632,608.33,Civil Litigation Disqualifications Counsel Fees,,939600703
DBT,The Insolvency Service,07/06/2023,ICT,Change and Technology Services,Bt Telephone Payment Centre,300046538,"-1,959.23",Telephones - Charges,Large,245719348
DBT,The Insolvency Service,07/06/2023,Estates - Property,"Finance, Commercial, Sustainability & Property",Dwf Law LLP,300046706,"-71,087.00",Estates Professional Services,,
DBT,The Insolvency Service,08/06/2023,"Printing, Stationary, Postage & Confidential Waste",Shared Contracts,Banner Business Services Ltd,300046581,"4,862.94",Office supplies,Large,731860439
DBT,The Insolvency Service,08/06/2023,ICT,Investigations & Enforcement Services,Intaforensics Ltd,300046661,"2,988.43",IT - Run,,900353372
DBT,The Insolvency Service,08/06/2023,ICT,Investigations & Enforcement Services,Intaforensics Ltd,300046681,"2,320.00",IT - Run,,900353372
DBT,The Insolvency Service,08/06/2023,"Printing, Stationary, Postage & Confidential Waste",Shared Contracts,Restore Datashred (Data Solutions 2016 Ltd T/A Restore Data),300046603,"1,674.26",Confidential Waste,Large,240193143
DBT,The Insolvency Service,08/06/2023,"Printing, Stationary, Postage & Confidential Waste",Shared Contracts,City Sprint Uk Ltd,300046650,"3,963.55",Courier,SME,997327364
DBT,The Insolvency Service,08/06/2023,Legal - Costs of Criminal Prosecutions and Advice,Legal Services Division,18 Red Lion Court Chambers,300046663,675.00,Costs of Criminal Prosecutions and Advice,SME,766793665
DBT,The Insolvency Service,08/06/2023,Off-Site Storage,Official Receiver Services,Restore Plc (Records Management),300046662,"10,762.96",Storage - HQ,Large,843863011
DBT,The Insolvency Service,08/06/2023,Staff Costs - Non-Perms,Shared Contracts,ALEXANDER MANN SOLUTIONS,300046502,"141,056.56",Agency Staff & Contractor Costs,Large,7444926120
DBT,The Insolvency Service,08/06/2023,Staff Costs - Non-Perms,Projects,SmartSourcing,300046692,"15,680.64",Agency Staff & Contractor Costs,SME,788507869
DBT,The Insolvency Service,08/06/2023,ICT,Investigations & Enforcement Services,Advanced 365 Limited,300046539,566.45,IT - Run,Large,927547983
DBT,The Insolvency Service,08/06/2023,Estates - Property,"Finance, Commercial, Sustainability & Property",Avison Young (Non Rent/Legal Advice),300046685,750.00,Estates Professional Services,SME,
DBT,The Insolvency Service,08/06/2023,ICT,Change and Technology Services,NTT DATA UK LIMITED,300046677,"14,113.27",IT - Run,Large,159334590
DBT,The Insolvency Service,08/06/2023,Other Costs,Official Receiver Services,Controlaccount PLC,300046644,"4,674.00",Financial Searches,SME,945758964
DBT,The Insolvency Service,08/06/2023,Other Costs,Legal Services Division,Controlaccount PLC,300046652,"2,783.64",Financial Searches,SME,945758964
DBT,The Insolvency Service,08/06/2023,Staff Costs - Non-Perms,"Finance, Commercial, Sustainability & Property",Spinwell Global Ltd,300046605,"3,282.00",Agency Staff & Contractor Costs,,257189569
DBT,The Insolvency Service,08/06/2023,Staff Costs - Non-Perms,"Finance, Commercial, Sustainability & Property",Spinwell Global Ltd,300046676,"2,624.93",Agency Staff & Contractor Costs,,257189569
DBT,The Insolvency Service,08/06/2023,Legal - Costs of Civil Litigation Disqualifications,Legal Services Division,5 Stone Buildings (Chambers Account),300046680,"1,916.67",Civil Litigation Disqualifications Counsel Fees,,939600703
DBT,The Insolvency Service,09/06/2023,Other Costs,Official Receiver Services,Insolvency Service,300046724,960.00,"Fruitless, ex-Gratia and Compensation Payment",Public Sector,
DBT,The Insolvency Service,09/06/2023,Estates - Property,"Finance, Commercial, Sustainability & Property",Cbre Limited,300046655,844.49,Landlord Service Charge,Large,
DBT,The Insolvency Service,09/06/2023,Staff Costs - Non-Perms,Projects,SmartSourcing,300046695,"18,080.64",Agency Staff & Contractor Costs,SME,788507869
DBT,The Insolvency Service,09/06/2023,Staff Costs - Non-Perms,Change and Technology Services,SmartSourcing,300046715,"4,507.20",Agency Staff & Contractor Costs,SME,788507869
DBT,The Insolvency Service,09/06/2023,Staff Costs - Non-Perms,Change and Technology Services,SmartSourcing,300046728,"16,160.64",Agency Staff & Contractor Costs,SME,788507869
DBT,The Insolvency Service,09/06/2023,Staff Costs - Non-Perms,Investigations & Enforcement Services,Red Snapper Recruitment,300046716,"1,566.96",Agency Staff & Contractor Costs,SME,835435718
DBT,The Insolvency Service,09/06/2023,Staff Costs - Non-Perms,Investigations & Enforcement Services,Red Snapper Recruitment,300046717,"1,566.96",Agency Staff & Contractor Costs,SME,835435718
DBT,The Insolvency Service,09/06/2023,Staff Costs - Non-Perms,Investigations & Enforcement Services,Red Snapper Recruitment,300046718,"1,566.96",Agency Staff & Contractor Costs,SME,835435718
DBT,The Insolvency Service,09/06/2023,Staff Costs - Non-Perms,Investigations & Enforcement Services,Red Snapper Recruitment,300046719,"1,566.96",Agency Staff & Contractor Costs,SME,835435718
DBT,The Insolvency Service,09/06/2023,Staff Costs - Non-Perms,Investigations & Enforcement Services,Red Snapper Recruitment,300046720,"1,566.96",Agency Staff & Contractor Costs,SME,835435718
DBT,The Insolvency Service,09/06/2023,Staff Costs - Non-Perms,Investigations & Enforcement Services,Red Snapper Recruitment,300046721,"3,432.00",Agency Staff & Contractor Costs,SME,835435718
DBT,The Insolvency Service,09/06/2023,Staff Costs - Non-Perms,Investigations & Enforcement Services,Red Snapper Recruitment,300046722,"1,175.22",Agency Staff & Contractor Costs,SME,835435718
DBT,The Insolvency Service,09/06/2023,Staff Costs - Non-Perms,Investigations & Enforcement Services,Red Snapper Recruitment,300046723,"1,566.96",Agency Staff & Contractor Costs,SME,835435718
DBT,The Insolvency Service,09/06/2023,Staff Costs - Non-Perms,Investigations & Enforcement Services,Red Snapper Recruitment,300046726,"1,566.96",Agency Staff & Contractor Costs,SME,835435718
DBT,The Insolvency Service,09/06/2023,Staff Costs - Non-Perms,Investigations & Enforcement Services,Red Snapper Recruitment,300046727,"1,566.96",Agency Staff & Contractor Costs,SME,835435718
DBT,The Insolvency Service,09/06/2023,ICT,Projects,NTT DATA UK LIMITED,300046697,"210,254.00",IT - Transform,Large,159334590
DBT,The Insolvency Service,09/06/2023,ICT,Projects,NTT DATA UK LIMITED,300046698,"55,248.00",IT - Transform,Large,159334590
DBT,The Insolvency Service,09/06/2023,ICT,Projects,NTT DATA UK LIMITED,300046701,"1,950.00",IT - Transform,Large,159334590
DBT,The Insolvency Service,09/06/2023,"Printing, Stationary, Postage & Confidential Waste",Shared Contracts,PSL Print Management Ltd,300046731,"4,849.40",Printing and Reprographics,Large,448293129
DBT,The Insolvency Service,12/06/2023,Legal - Costs of Recovering Civil Costs Awarded,Legal Services Division,Burness Paull & Williamsons Solicitors,300046735,578.00,Recovery of Civil Proceedings Costs Awarded,Large,216218532
DBT,The Insolvency Service,12/06/2023,Legal - Costs of Civil Litigation Disqualifications,Legal Services Division,Burness Paull & Williamsons Solicitors,300046736,680.00,Costs of Civil Litigation Disqualifications,Large,216218532
DBT,The Insolvency Service,12/06/2023,Other Costs,People & Communications,Dods Group Limited,300046745,"5,550.00",Conferences & Room Hire,,792067900
DBT,The Insolvency Service,12/06/2023,ICT,Change and Technology Services,Altia Solutions Ltd,300046733,"79,800.00",IT - Run,,789836741
DBT,The Insolvency Service,12/06/2023,ICT,Change and Technology Services,Advanced 365 Limited,300046527,"1,401.06",IT - Run,Large,927547983
DBT,The Insolvency Service,12/06/2023,Legal - Costs of Civil Litigation Disqualifications,Legal Services Division,9 Stone Buildings ,300046738,720.00,Civil Litigation Disqualifications Counsel Fees,SME,277586642
DBT,The Insolvency Service,13/06/2023,Legal - Costs of Recovering Civil Costs Awarded,Legal Services Division,Government Legal Department,300046770,"6,924.80",Recovery of Civil Proceedings Costs Awarded,Public Sector,888823066
DBT,The Insolvency Service,13/06/2023,"Printing, Stationary, Postage & Confidential Waste",Shared Contracts,Royal Mail (Response Services),300046773,"1,458.12",Postage,Large,243170002
DBT,The Insolvency Service,13/06/2023,Training,"Finance, Commercial, Sustainability & Property",KPMG LLP,300046756,531.11,Training,Large,791788859
DBT,The Insolvency Service,13/06/2023,Off-Site Storage,Official Receiver Services,Oasis UK Ltd,300046730,"1,144.48",Storage - HQ,Large,931579211
DBT,The Insolvency Service,13/06/2023,Legal - Costs of Civil Litigation Disqualifications,Legal Services Division,Selbourne Chambers,300046765,560.00,Civil Litigation Disqualifications Counsel Fees,SME,1036299146
DBT,The Insolvency Service,13/06/2023,Estates - Property,"Finance, Commercial, Sustainability & Property",Newcastle City Council,300046764,"1,439.69",Rent,Public Sector,178208251
DBT,The Insolvency Service,13/06/2023,Estates - Property,"Finance, Commercial, Sustainability & Property",Newcastle City Council,300046764,869.13,Landlord Service Charge,Public Sector,178208251
DBT,The Insolvency Service,13/06/2023,Estates - Property,"Finance, Commercial, Sustainability & Property",Bedford Borough Council,300046754,678.00,Rent,,198207436
DBT,The Insolvency Service,13/06/2023,Estates - Property,"Finance, Commercial, Sustainability & Property",DEFRA C/O BNP Paribas,300046772,"6,519.37",Rent,,888800181
DBT,The Insolvency Service,13/06/2023,Estates - Property,"Finance, Commercial, Sustainability & Property",DEFRA C/O BNP Paribas,300046772,"9,280.00",Landlord Service Charge,,888800181
DBT,The Insolvency Service,13/06/2023,ICT,Projects,Fordway Solutions Ltd,300046657,"3,900.00",IT - Transform,,572800543
DBT,The Insolvency Service,14/06/2023,Legal - Costs of Civil Litigation Disqualifications,Legal Services Division,Womble Bond Dickinson (UK) LLP,300046806,"378,375.74",Costs of Civil Litigation Disqualifications,,123393627
DBT,The Insolvency Service,14/06/2023,Legal - Costs of Recovering Civil Costs Awarded,Legal Services Division,Womble Bond Dickinson (UK) LLP,300046807,"1,952.00",Recovery of Civil Proceedings Costs Awarded,,123393627
DBT,The Insolvency Service,14/06/2023,Legal - Costs of Recovering Civil Costs Awarded,Legal Services Division,Howes Percival,300046744,"1,306.50",Recovery of Civil Proceedings Costs Awarded,Large,119523573
DBT,The Insolvency Service,14/06/2023,Legal - Outsourced Investigation,Official Receiver Services,Howes Percival,300046783,"4,615.00",Solicitors Investigations,Large,119523573
DBT,The Insolvency Service,14/06/2023,Estates - Property,Projects,Gowling WLG (UK) LLP,300046768,"1,125.00",Property Major Works,,858698838
DBT,The Insolvency Service,14/06/2023,Legal - Costs of Civil Litigation Disqualifications,Legal Services Division,Burness Paull & Williamsons Solicitors,300046743,"7,838.69",Costs of Civil Litigation Disqualifications,Large,216218532
DBT,The Insolvency Service,14/06/2023,ICT,Change and Technology Services,Daisy Corporate Services Trading Limited,300046729,"25,567.75",IT - Run,Large,722471355
DBT,The Insolvency Service,14/06/2023,Legal - Costs of Civil Litigation Winding Up,Legal Services Division,Tlt Llp,300046799,"3,506.61",Costs of Civil Litigation Winding Up,Large,3574583240
DBT,The Insolvency Service,14/06/2023,Legal - Costs of Recovering Civil Costs Awarded,Legal Services Division,Tlt Llp,300046800,"1,129.73",Recovery of Civil Proceedings Costs Awarded,Large,3574583240
DBT,The Insolvency Service,14/06/2023,Legal - Costs of Civil Litigation Disqualifications,Legal Services Division,Tlt Llp,300046801,"1,187.99",Costs of Civil Litigation Disqualifications,Large,3574583240
DBT,The Insolvency Service,14/06/2023,Legal - Outsourced Investigation,Investigations & Enforcement Services,Tlt Llp,300046803,"8,122.36",Solicitors Investigations,Large,3574583240
DBT,The Insolvency Service,14/06/2023,Legal - Outsourced Investigation,Official Receiver Services,Tlt Llp,300046804,"3,606.15",Solicitors Investigations,Large,3574583240
DBT,The Insolvency Service,14/06/2023,Staff Costs - Non-Perms,Shared Contracts,ALEXANDER MANN SOLUTIONS,300046740,"99,348.24",Agency Staff & Contractor Costs,Large,7444926120
DBT,The Insolvency Service,14/06/2023,Staff Costs - Non-Perms,Change and Technology Services,SmartSourcing,300046809,"5,634.00",Agency Staff & Contractor Costs,SME,788507869
DBT,The Insolvency Service,14/06/2023,Legal - Costs of Criminal Prosecutions and Advice,Legal Services Division,2 Harcourt Buildings,300046819,"1,194.00",Costs of Criminal Prosecutions and Advice,SME,946426795
DBT,The Insolvency Service,14/06/2023,"Legal, Translation & Consultancy",Change and Technology Services,Nomensa Limited,300046766,"15,000.00",Consultancy,Large,771727411
DBT,The Insolvency Service,14/06/2023,Staff Costs - Non-Perms,Business Service Division,Randstad Solutions Ltd,300046753,524.53,Agency Staff & Contractor Costs,Large,492435726
DBT,The Insolvency Service,14/06/2023,Legal - Costs of Criminal Prosecutions and Advice,Legal Services Division,2 Hare Court,300046805,575.10,Costs of Criminal Prosecutions and Advice,,788418867
DBT,The Insolvency Service,14/06/2023,Legal - Costs of Civil Litigation Disqualifications,Legal Services Division,5 Stone Buildings (Chambers Account),300046824,900.00,Civil Litigation Disqualifications Counsel Fees,,939600703
DBT,The Insolvency Service,14/06/2023,Staff Costs - Non-Perms,Shared Contracts,ALEXANDER MANN SOLUTIONS,300046739,"-2,383.96",Agency Staff & Contractor Costs,Large,7444926120
DBT,The Insolvency Service,15/06/2023,Estates - Property,"Finance, Commercial, Sustainability & Property",Acenes House Ltd,300046853,"15,600.00",Rent,SME,182696958
DBT,The Insolvency Service,15/06/2023,Estates - Property,"Finance, Commercial, Sustainability & Property",Acenes House Ltd,300046853,"3,360.00",Landlord Service Charge,SME,182696958
DBT,The Insolvency Service,15/06/2023,ICT,Change and Technology Services,Daisy Corporate Services Trading Limited,300046837,"11,786.00",IT - Run,Large,722471355
DBT,The Insolvency Service,15/06/2023,ICT,Change and Technology Services,Experian Ltd,300046826,"2,784.73",IT - Run,Large,887133593
DBT,The Insolvency Service,15/06/2023,ICT,Change and Technology Services,Experian Ltd,300046827,"9,783.60",IT - Run,Large,887133593
DBT,The Insolvency Service,15/06/2023,HR,Investigations & Enforcement Services,National Crime Agency,300046815,725.00,Staff Subscriptions,Public Sector,888849824
DBT,The Insolvency Service,15/06/2023,ICT,Business Service Division,NTT DATA UK LIMITED,300046746,"61,710.24",IT - Run,Large,159334590
DBT,The Insolvency Service,15/06/2023,ICT,Change and Technology Services,Phoenix Software Limited,300046813,"6,237.00",IT - Run,SME,755349015
DBT,The Insolvency Service,15/06/2023,Staff Costs - Non-Perms,"Finance, Commercial, Sustainability & Property",Spinwell Global Ltd,300046834,"2,624.93",Agency Staff & Contractor Costs,,257189569
DBT,The Insolvency Service,15/06/2023,Estates - Property,"Finance, Commercial, Sustainability & Property",Vickery Holman (Exeter),300046836,"17,490.38",Landlord Service Charge,,52008956
DBT,The Insolvency Service,15/06/2023,Staff Costs - Non-Perms,Projects,Synergi Software Limited,300046856,"12,240.00",Agency Staff & Contractor Costs,,
DBT,The Insolvency Service,16/06/2023,Estates - Property,"Finance, Commercial, Sustainability & Property",Acenes House Ltd,300046854,"2,650.80",Landlord Service Charge,SME,182696958
DBT,The Insolvency Service,16/06/2023,Legal - Costs of Civil Litigation Disqualifications,Legal Services Division,Womble Bond Dickinson (UK) LLP,300046818,"6,660.52",Costs of Civil Litigation Disqualifications,,123393627
DBT,The Insolvency Service,16/06/2023,Legal - Costs of Civil Litigation Winding Up,Legal Services Division,Howes Percival,300046816,"7,722.90",Costs of Civil Litigation Winding Up,Large,119523573
DBT,The Insolvency Service,16/06/2023,Legal - Costs of Civil Litigation Disqualifications,Legal Services Division,Howes Percival,300046817,"9,378.00",Costs of Civil Litigation Disqualifications,Large,119523573
DBT,The Insolvency Service,16/06/2023,HR,People & Communications,LNRS Data Services Limited,300046885,"3,497.50",HR & Payroll Costs,,730859520
DBT,The Insolvency Service,16/06/2023,HR,People & Communications,LNRS Data Services Limited,300046886,"6,995.00",HR & Payroll Costs,,730859520
DBT,The Insolvency Service,16/06/2023,Training,People & Communications,Qa Limited,300046838,"2,708.00",Training,,
DBT,The Insolvency Service,16/06/2023,Estates - Property,"Finance, Commercial, Sustainability & Property",Colliers International Property Consultants Ltd,300046864,"4,576.57",Landlord Service Charge,Large,158893550
DBT,The Insolvency Service,16/06/2023,Investigation & Enforcement,Investigations & Enforcement Services,Unit4 Business Software Ltd,300046890,"2,666.63",Case Related Costs,Large,567554796
DBT,The Insolvency Service,16/06/2023,Legal - Costs of Recovering Civil Costs Awarded,Legal Services Division,Shepherd & Wedderburn Ws,300046798,741.04,Recovery of Civil Proceedings Costs Awarded,Large,890559386
DBT,The Insolvency Service,16/06/2023,Investigation & Enforcement,Investigations & Enforcement Services,Mendip Media Group Ltd (Now Trading As Appen) - (Transcri),300046878,717.55,Case Related Costs,SME,609546425
DBT,The Insolvency Service,16/06/2023,Legal - Costs of Criminal Prosecutions and Advice,Legal Services Division,St Philips Barristers,300046850,551.00,Costs of Criminal Prosecutions and Advice,SME,614053968
DBT,The Insolvency Service,16/06/2023,Legal - Costs of Criminal Prosecutions and Advice,Legal Services Division,Wace Morgan Solicitors,300046867,"3,755.54",Costs of Criminal Prosecutions and Advice,SME,220166160
DBT,The Insolvency Service,16/06/2023,Legal - Costs of Civil Litigation Disqualifications,Legal Services Division,Tlt Llp,300046802,"2,812.81",Costs of Civil Litigation Disqualifications,Large,3574583240
DBT,The Insolvency Service,16/06/2023,Legal - Costs of Civil Litigation Disqualifications,Legal Services Division,Tlt Llp,300046802,536.48,Costs of Civil Litigation Disqualifications,Large,3574583240
DBT,The Insolvency Service,16/06/2023,Estates - Property,"Finance, Commercial, Sustainability & Property",Avison Young (Non Rent/Legal Advice),300046855,900.00,Estates Professional Services,SME,
DBT,The Insolvency Service,16/06/2023,Staff Costs - Non-Perms,Investigations & Enforcement Services,Red Snapper Recruitment,300046785,"1,958.70",Agency Staff & Contractor Costs,SME,835435718
DBT,The Insolvency Service,16/06/2023,Staff Costs - Non-Perms,Investigations & Enforcement Services,Red Snapper Recruitment,300046786,"1,958.70",Agency Staff & Contractor Costs,SME,835435718
DBT,The Insolvency Service,16/06/2023,Staff Costs - Non-Perms,Investigations & Enforcement Services,Red Snapper Recruitment,300046787,"1,958.70",Agency Staff & Contractor Costs,SME,835435718
DBT,The Insolvency Service,16/06/2023,Staff Costs - Non-Perms,Investigations & Enforcement Services,Red Snapper Recruitment,300046788,"1,958.70",Agency Staff & Contractor Costs,SME,835435718
DBT,The Insolvency Service,16/06/2023,Staff Costs - Non-Perms,Investigations & Enforcement Services,Red Snapper Recruitment,300046789,"1,958.70",Agency Staff & Contractor Costs,SME,835435718
DBT,The Insolvency Service,16/06/2023,Staff Costs - Non-Perms,Investigations & Enforcement Services,Red Snapper Recruitment,300046790,"1,958.70",Agency Staff & Contractor Costs,SME,835435718
DBT,The Insolvency Service,16/06/2023,Legal - Costs of Civil Litigation Disqualifications,Legal Services Division,GateHouse Chambers,300046865,"1,612.00",Civil Litigation Disqualifications Counsel Fees,,160206453
DBT,The Insolvency Service,16/06/2023,Off-Site Storage,Official Receiver Services,Shaping Cloud Ltd,300046862,"6,318.70",Storage - HQ,,997694722
DBT,The Insolvency Service,16/06/2023,Legal - Costs of Criminal Prosecutions and Advice,Legal Services Division,St Pauls Chambers,300046822,"1,458.00",Costs of Criminal Prosecutions and Advice,,734679693
DBT,The Insolvency Service,16/06/2023,Legal - Costs of Civil Litigation Disqualifications,Legal Services Division,4 Stone Buildings,300046866,935.00,Civil Litigation Disqualifications Counsel Fees,,250314253
DBT,The Insolvency Service,19/06/2023,Estates - Property,"Finance, Commercial, Sustainability & Property",Companies House,300046869,700.10,Rent,,
DBT,The Insolvency Service,19/06/2023,Legal - Costs of Criminal Prosecutions and Advice,Legal Services Division,St Johns Buildings Barristers Chambers,300046793,686.40,Costs of Criminal Prosecutions and Advice,,221921635
DBT,The Insolvency Service,19/06/2023,Legal - Outsourced Investigation,Investigations & Enforcement Services,Howes Percival,300046911,"7,132.50",Solicitors Investigations,Large,119523573
DBT,The Insolvency Service,19/06/2023,Legal - Outsourced Investigation,Investigations & Enforcement Services,Howes Percival,300046912,"1,850.00",Solicitors Investigations,Large,119523573
DBT,The Insolvency Service,19/06/2023,Legal - Outsourced Investigation,Investigations & Enforcement Services,Burness Paull & Williamsons Solicitors,300046910,820.50,Solicitors Investigations,Large,216218532
DBT,The Insolvency Service,19/06/2023,ICT,Change and Technology Services,Ee Ltd (Air Time),300046908,555.00,Telephones - Charges,Large,771592016
DBT,The Insolvency Service,19/06/2023,ICT,Change and Technology Services,Ee Ltd (Air Time),300046909,615.07,Telephones - Charges,Large,771592016
DBT,The Insolvency Service,19/06/2023,Legal - Costs of Civil Litigation Disqualifications,Legal Services Division,Selbourne Chambers,300046896,"1,386.66",Civil Litigation Disqualifications Counsel Fees,SME,1036299146
DBT,The Insolvency Service,19/06/2023,Staff Costs - Non-Perms,Business Service Division,Randstad Solutions Ltd,300046747,"1,122.77",Agency Staff & Contractor Costs,Large,492435726
DBT,The Insolvency Service,19/06/2023,Staff Costs - Non-Perms,Business Service Division,Randstad Solutions Ltd,300046881,"7,586.26",Agency Staff & Contractor Costs,Large,492435726
DBT,The Insolvency Service,19/06/2023,Staff Costs - Non-Perms,Business Service Division,Randstad Solutions Ltd,300046882,628.57,Agency Staff & Contractor Costs,Large,492435726
DBT,The Insolvency Service,19/06/2023,Staff Costs - Non-Perms,Business Service Division,Randstad Solutions Ltd,300046899,511.54,Agency Staff & Contractor Costs,Large,492435726
DBT,The Insolvency Service,19/06/2023,HR,People & Communications,Health Assurred Limited,300046863,597.30,Staff Welfare,SME,927524217
DBT,The Insolvency Service,19/06/2023,Staff Costs - Non-Perms,"Finance, Commercial, Sustainability & Property",Spinwell Global Ltd,300046797,"2,624.93",Agency Staff & Contractor Costs,,257189569
DBT,The Insolvency Service,20/06/2023,Legal - Outsourced Investigation,Investigations & Enforcement Services,Burness Paull & Williamsons Solicitors,300046924,"7,849.53",Solicitors Investigations,Large,216218532
DBT,The Insolvency Service,20/06/2023,Legal - Outsourced Investigation,Investigations & Enforcement Services,Burness Paull & Williamsons Solicitors,300046925,"8,539.95",Solicitors Investigations,Large,216218532
DBT,The Insolvency Service,20/06/2023,Legal - Costs of Civil Litigation Winding Up,Legal Services Division,Burness Paull & Williamsons Solicitors,300046926,"2,817.51",Costs of Civil Litigation Winding Up,Large,216218532
DBT,The Insolvency Service,20/06/2023,Legal - Costs of Civil Litigation Winding Up,Legal Services Division,Burness Paull & Williamsons Solicitors,300046927,"2,724.50",Costs of Civil Litigation Winding Up,Large,216218532
DBT,The Insolvency Service,20/06/2023,Staff Costs - Non-Perms,Shared Contracts,ALEXANDER MANN SOLUTIONS,300046913,"103,772.47",Agency Staff & Contractor Costs,Large,7444926120
DBT,The Insolvency Service,20/06/2023,Legal - Costs of Civil Litigation Disqualifications,Legal Services Division,Selbourne Chambers,300046923,994.00,Civil Litigation Disqualifications Counsel Fees,SME,1036299146
DBT,The Insolvency Service,20/06/2023,ICT,Projects,Advanced 365 Limited,300046540,"9,853.56",IT - Run,Large,927547983
DBT,The Insolvency Service,20/06/2023,Staff Costs - Non-Perms,Investigations & Enforcement Services,Red Snapper Recruitment,300046861,"4,290.00",Agency Staff & Contractor Costs,SME,835435718
DBT,The Insolvency Service,20/06/2023,Staff Costs - Non-Perms,Investigations & Enforcement Services,Red Snapper Recruitment,300046870,"1,958.70",Agency Staff & Contractor Costs,SME,835435718
DBT,The Insolvency Service,20/06/2023,Staff Costs - Non-Perms,Investigations & Enforcement Services,Red Snapper Recruitment,300046872,"1,958.70",Agency Staff & Contractor Costs,SME,835435718
DBT,The Insolvency Service,20/06/2023,Staff Costs - Non-Perms,Investigations & Enforcement Services,Red Snapper Recruitment,300046873,"1,958.70",Agency Staff & Contractor Costs,SME,835435718
DBT,The Insolvency Service,20/06/2023,Staff Costs - Non-Perms,Investigations & Enforcement Services,Red Snapper Recruitment,300046874,"1,958.70",Agency Staff & Contractor Costs,SME,835435718
DBT,The Insolvency Service,20/06/2023,Staff Costs - Non-Perms,Investigations & Enforcement Services,Red Snapper Recruitment,300046879,"1,958.70",Agency Staff & Contractor Costs,SME,835435718
DBT,The Insolvency Service,20/06/2023,Staff Costs - Non-Perms,Investigations & Enforcement Services,Red Snapper Recruitment,300046884,"1,958.70",Agency Staff & Contractor Costs,SME,835435718
DBT,The Insolvency Service,20/06/2023,Staff Costs - Non-Perms,Investigations & Enforcement Services,Red Snapper Recruitment,300046887,"1,958.70",Agency Staff & Contractor Costs,SME,835435718
DBT,The Insolvency Service,20/06/2023,Staff Costs - Non-Perms,Investigations & Enforcement Services,Red Snapper Recruitment,300046888,"1,958.70",Agency Staff & Contractor Costs,SME,835435718
DBT,The Insolvency Service,20/06/2023,Staff Costs - Non-Perms,Investigations & Enforcement Services,Red Snapper Recruitment,300046889,"1,958.70",Agency Staff & Contractor Costs,SME,835435718
DBT,The Insolvency Service,20/06/2023,Estates - Property,"Finance, Commercial, Sustainability & Property",Oakley Property Ltd,300046894,"3,007.73",Landlord Service Charge,SME,754788085
DBT,The Insolvency Service,20/06/2023,Estates - Property,"Finance, Commercial, Sustainability & Property",Kash Group Properties Ltd,300046905,"15,965.52",Landlord Service Charge,SME,180995664
DBT,The Insolvency Service,20/06/2023,Staff Costs - Non-Perms,Business Service Division,Randstad Solutions Ltd,300046883,"1,153.12",Agency Staff & Contractor Costs,Large,492435726
DBT,The Insolvency Service,20/06/2023,Staff Costs - Non-Perms,Business Service Division,Randstad Solutions Ltd,300046898,641.58,Agency Staff & Contractor Costs,Large,492435726
DBT,The Insolvency Service,20/06/2023,Staff Costs - Non-Perms,Business Service Division,Randstad Solutions Ltd,300046900,"1,170.46",Agency Staff & Contractor Costs,Large,492435726
DBT,The Insolvency Service,20/06/2023,Staff Costs - Non-Perms,Business Service Division,Randstad Solutions Ltd,300046902,641.58,Agency Staff & Contractor Costs,Large,492435726
DBT,The Insolvency Service,20/06/2023,ICT,Change and Technology Services,Phoenix Software Limited,300046929,"2,502.53",IT - Run,SME,755349015
DBT,The Insolvency Service,20/06/2023,ICT,Change and Technology Services,Phoenix Software Limited,300046930,"121,028.05",IT - Run,SME,755349015
DBT,The Insolvency Service,21/06/2023,Estates - Property,"Finance, Commercial, Sustainability & Property",Avison Young formerly GVA (Croydon),300046980,"63,909.00",Rent,SME,657719590
DBT,The Insolvency Service,21/06/2023,Estates - Property,"Finance, Commercial, Sustainability & Property",Avison Young formerly GVA (Croydon),300046980,"29,450.38",Landlord Service Charge,SME,657719590
DBT,The Insolvency Service,21/06/2023,ICT,Change and Technology Services,Ee Ltd (Air Time),300046907,"31,774.13",Telephones - Charges,Large,771592016
DBT,The Insolvency Service,21/06/2023,Legal - Costs of Criminal Prosecutions and Advice,Legal Services Division,Lincoln House Chambers,300046973,"1,673.00",Costs of Criminal Prosecutions and Advice,,876676360
DBT,The Insolvency Service,21/06/2023,ICT,Business Service Division,NTT DATA UK LIMITED,300046830,"57,850.56",IT - Run,Large,159334590
DBT,The Insolvency Service,21/06/2023,Staff Costs - Non-Perms,Business Service Division,Randstad Solutions Ltd,300046750,"5,895.65",Agency Staff & Contractor Costs,Large,492435726
DBT,The Insolvency Service,22/06/2023,Legal - Costs of Recovering Civil Costs Awarded,Legal Services Division,Government Legal Department,300046978,584.20,Recovery of Civil Proceedings Costs Awarded,Public Sector,888823066
DBT,The Insolvency Service,22/06/2023,Training,People & Communications,KPMG,300046921,"2,984.46",Training,Large,
DBT,The Insolvency Service,22/06/2023,Training,People & Communications,KPMG,300046922,"2,984.46",Training,Large,
DBT,The Insolvency Service,22/06/2023,ICT,Change and Technology Services,Ricoh Uk Limited,300046972,"7,277.86",IT - Run,Large,
DBT,The Insolvency Service,22/06/2023,Estates - Property,"Finance, Commercial, Sustainability & Property",Colliers International Property Consultants Ltd,300046969,"6,098.47",Landlord Service Charge,Large,158893550
DBT,The Insolvency Service,22/06/2023,Legal - Costs of Criminal Prosecutions and Advice,Legal Services Division,18 Red Lion Court Chambers,300047004,840.00,Costs of Criminal Prosecutions and Advice,SME,766793665
DBT,The Insolvency Service,22/06/2023,Staff Costs - Non-Perms,Investigations & Enforcement Services,Red Snapper Recruitment,300046997,"1,958.70",Agency Staff & Contractor Costs,SME,835435718
DBT,The Insolvency Service,22/06/2023,Staff Costs - Non-Perms,Investigations & Enforcement Services,Red Snapper Recruitment,300047000,"4,290.00",Agency Staff & Contractor Costs,SME,835435718
DBT,The Insolvency Service,22/06/2023,Staff Costs - Non-Perms,Investigations & Enforcement Services,Red Snapper Recruitment,300047002,"1,958.70",Agency Staff & Contractor Costs,SME,835435718
DBT,The Insolvency Service,22/06/2023,Staff Costs - Non-Perms,Change and Technology Services,Randstad Solutions Ltd,300046752,765.00,Agency Staff & Contractor Costs,Large,492435726
DBT,The Insolvency Service,22/06/2023,Staff Costs - Non-Perms,"Finance, Commercial, Sustainability & Property",Spinwell Global Ltd,300046995,"3,281.16",Agency Staff & Contractor Costs,,257189569
DBT,The Insolvency Service,22/06/2023,Staff Costs - Non-Perms,Shared Contracts,Talent International (UK) Ltd,300047001,"12,780.00",Agency Staff & Contractor Costs,,176415692
DBT,The Insolvency Service,23/06/2023,Off-Site Storage,Shared Contracts,Iron Mountain (Uk) Ltd,300047008,"35,653.34",Storage - OR,Large,607937516
DBT,The Insolvency Service,23/06/2023,Estates - Property,"Finance, Commercial, Sustainability & Property",Vickery Holman,300047016,"7,131.27",Landlord Service Charge,SME,
DBT,The Insolvency Service,23/06/2023,Estates - Property,"Finance, Commercial, Sustainability & Property",Vickery Holman,300047017,"3,458.19",Landlord Service Charge,SME,
DBT,The Insolvency Service,23/06/2023,ICT,Investigations & Enforcement Services,Datel Computing Limited,300047018,"6,798.00",IT - Run,SME,323082982
DBT,The Insolvency Service,23/06/2023,Legal - Costs of Criminal Prosecutions and Advice,Legal Services Division,Harris Cuffaro And Nichols Solicitors,300047039,839.92,Costs of Criminal Prosecutions and Advice,SME,688634967
DBT,The Insolvency Service,23/06/2023,Legal - Costs of Criminal Prosecutions and Advice,Legal Services Division,STERNBERG REED SOLICITORS,300047055,546.17,Costs of Criminal Prosecutions and Advice,SME,283942233
DBT,The Insolvency Service,23/06/2023,Staff Costs - Non-Perms,Projects,SmartSourcing,300047027,"5,634.00",Agency Staff & Contractor Costs,SME,788507869
DBT,The Insolvency Service,23/06/2023,Staff Costs - Non-Perms,Investigations & Enforcement Services,Red Snapper Recruitment,300047003,"1,958.70",Agency Staff & Contractor Costs,SME,835435718
DBT,The Insolvency Service,23/06/2023,Staff Costs - Non-Perms,Investigations & Enforcement Services,Red Snapper Recruitment,300047005,"1,958.70",Agency Staff & Contractor Costs,SME,835435718
DBT,The Insolvency Service,23/06/2023,Staff Costs - Non-Perms,Investigations & Enforcement Services,Red Snapper Recruitment,300047007,"1,958.70",Agency Staff & Contractor Costs,SME,835435718
DBT,The Insolvency Service,23/06/2023,Staff Costs - Non-Perms,Investigations & Enforcement Services,Red Snapper Recruitment,300047009,"1,958.70",Agency Staff & Contractor Costs,SME,835435718
DBT,The Insolvency Service,23/06/2023,Staff Costs - Non-Perms,Investigations & Enforcement Services,Red Snapper Recruitment,300047012,"1,958.70",Agency Staff & Contractor Costs,SME,835435718
DBT,The Insolvency Service,23/06/2023,Staff Costs - Non-Perms,Investigations & Enforcement Services,Red Snapper Recruitment,300047014,"1,958.70",Agency Staff & Contractor Costs,SME,835435718
DBT,The Insolvency Service,23/06/2023,ICT,Projects,NTT DATA UK LIMITED,300047020,"282,762.84",IT - Transform,Large,159334590
DBT,The Insolvency Service,23/06/2023,ICT,Projects,NTT DATA UK LIMITED,300047021,"10,500.00",IT - Transform,Large,159334590
DBT,The Insolvency Service,23/06/2023,ICT,Projects,NTT DATA UK LIMITED,300047022,"7,800.00",IT - Transform,Large,159334590
DBT,The Insolvency Service,26/06/2023,Legal - Costs of Criminal Prosecutions and Advice,Legal Services Division,7 Bedford Row,300047068,933.00,Costs of Criminal Prosecutions and Advice,SME,524206970
DBT,The Insolvency Service,26/06/2023,Staff Costs - Non-Perms,Business Service Division,Randstad Solutions Ltd,300047037,"1,144.45",Agency Staff & Contractor Costs,Large,492435726
DBT,The Insolvency Service,26/06/2023,Staff Costs - Non-Perms,Business Service Division,Randstad Solutions Ltd,300047038,"8,392.58",Agency Staff & Contractor Costs,Large,492435726
DBT,The Insolvency Service,26/06/2023,Staff Costs - Non-Perms,Business Service Division,Randstad Solutions Ltd,300047040,"3,563.38",Agency Staff & Contractor Costs,Large,492435726
DBT,The Insolvency Service,26/06/2023,Staff Costs - Non-Perms,Business Service Division,Randstad Solutions Ltd,300047041,"3,589.39",Agency Staff & Contractor Costs,Large,492435726
DBT,The Insolvency Service,26/06/2023,Staff Costs - Non-Perms,Business Service Division,Randstad Solutions Ltd,300047042,"1,040.40",Agency Staff & Contractor Costs,Large,492435726
DBT,The Insolvency Service,26/06/2023,Staff Costs - Non-Perms,Business Service Division,Randstad Solutions Ltd,300047043,"2,228.20",Agency Staff & Contractor Costs,Large,492435726
DBT,The Insolvency Service,26/06/2023,Staff Costs - Non-Perms,Business Service Division,Randstad Solutions Ltd,300047044,641.58,Agency Staff & Contractor Costs,Large,492435726
DBT,The Insolvency Service,26/06/2023,Staff Costs - Non-Perms,Business Service Division,Randstad Solutions Ltd,300047047,"1,924.75",Agency Staff & Contractor Costs,Large,492435726
DBT,The Insolvency Service,26/06/2023,Staff Costs - Non-Perms,Business Service Division,Randstad Solutions Ltd,300047049,511.54,Agency Staff & Contractor Costs,Large,492435726
DBT,The Insolvency Service,26/06/2023,Staff Costs - Non-Perms,Business Service Division,Randstad Solutions Ltd,300047050,"2,427.60",Agency Staff & Contractor Costs,Large,492435726
DBT,The Insolvency Service,26/06/2023,Staff Costs - Non-Perms,Business Service Division,Randstad Solutions Ltd,300047051,"8,982.12",Agency Staff & Contractor Costs,Large,492435726
DBT,The Insolvency Service,26/06/2023,Staff Costs - Non-Perms,Business Service Division,Randstad Solutions Ltd,300047052,"6,762.61",Agency Staff & Contractor Costs,Large,492435726
DBT,The Insolvency Service,26/06/2023,Staff Costs - Non-Perms,Business Service Division,Randstad Solutions Ltd,300047053,"2,696.40",Agency Staff & Contractor Costs,Large,492435726
DBT,The Insolvency Service,26/06/2023,Staff Costs - Non-Perms,Business Service Division,Randstad Solutions Ltd,300047054,"1,803.36",Agency Staff & Contractor Costs,Large,492435726
DBT,The Insolvency Service,26/06/2023,Staff Costs - Non-Perms,Business Service Division,Randstad Solutions Ltd,300047058,641.58,Agency Staff & Contractor Costs,Large,492435726
DBT,The Insolvency Service,26/06/2023,Staff Costs - Non-Perms,Business Service Division,Randstad Solutions Ltd,300047059,"1,031.74",Agency Staff & Contractor Costs,Large,492435726
DBT,The Insolvency Service,26/06/2023,Staff Costs - Non-Perms,Business Service Division,Randstad Solutions Ltd,300047061,"1,924.74",Agency Staff & Contractor Costs,Large,492435726
DBT,The Insolvency Service,26/06/2023,Legal - Costs of Criminal Prosecutions and Advice,Legal Services Division,John H Dove,300047067,"2,600.92",Costs of Criminal Prosecutions and Advice,SME,410010054
DBT,The Insolvency Service,26/06/2023,Staff Costs - Non-Perms,Business Service Division,Randstad Solutions Ltd,300047035,"-4,820.53",Agency Staff & Contractor Costs,Large,492435726
DBT,The Insolvency Service,26/06/2023,Staff Costs - Non-Perms,Business Service Division,Randstad Solutions Ltd,300047036,"-3,043.18",Agency Staff & Contractor Costs,Large,492435726
DBT,The Insolvency Service,26/06/2023,Staff Costs - Non-Perms,Business Service Division,Randstad Solutions Ltd,300047048,"-4,986.16",Agency Staff & Contractor Costs,Large,492435726
DBT,The Insolvency Service,27/06/2023,Estates - Property,"Finance, Commercial, Sustainability & Property",Companies House,300047032,"43,700.16",Rent,,
DBT,The Insolvency Service,27/06/2023,Estates - Property,"Finance, Commercial, Sustainability & Property",Colliers International Property Consultants Ltd,300047064,"45,224.87",Landlord Service Charge,Large,158893550
DBT,The Insolvency Service,27/06/2023,Estates - Property,"Finance, Commercial, Sustainability & Property",Colliers International Property Consultants Ltd,300047080,"136,682.39",Rent,Large,158893550
DBT,The Insolvency Service,27/06/2023,Legal - Costs of Civil Litigation Disqualifications,Legal Services Division,Exchange Chambers,300047086,967.50,Civil Litigation Disqualifications Counsel Fees,SME,
DBT,The Insolvency Service,27/06/2023,Legal - Costs of Civil Litigation Disqualifications,Legal Services Division,Exchange Chambers,300047089,880.00,Civil Litigation Disqualifications Counsel Fees,SME,
DBT,The Insolvency Service,27/06/2023,Legal - Costs of Criminal Prosecutions and Advice,Legal Services Division,18 Red Lion Court Chambers,300047085,606.96,Costs of Criminal Prosecutions and Advice,SME,766793665
DBT,The Insolvency Service,27/06/2023,Off-Site Storage,Official Receiver Services,Shaping Cloud Ltd,300047083,"23,150.00",Storage - OR,,997694722
DBT,The Insolvency Service,27/06/2023,Estates - Property,"Finance, Commercial, Sustainability & Property",Bedford Borough Council,300047065,678.00,Rent,,198207436
DBT,The Insolvency Service,28/06/2023,Legal - Outsourced Investigation,Investigations & Enforcement Services,Howes Percival,300047117,"2,680.50",Solicitors Investigations,Large,119523573
DBT,The Insolvency Service,28/06/2023,Legal - Outsourced Investigation,Investigations & Enforcement Services,Howes Percival,300047118,"6,103.00",Solicitors Investigations,Large,119523573
DBT,The Insolvency Service,28/06/2023,Legal - Outsourced Investigation,Investigations & Enforcement Services,Burness Paull & Williamsons Solicitors,300047113,632.50,Solicitors Investigations,Large,216218532
DBT,The Insolvency Service,28/06/2023,ICT,Investigations & Enforcement Services,Experian Ltd,300047013,"13,301.16",IT - Run,Large,887133593
DBT,The Insolvency Service,28/06/2023,Legal - Costs of Civil Litigation Disqualifications,Legal Services Division,Exchange Chambers,300047119,570.17,Civil Litigation Disqualifications Counsel Fees,SME,
DBT,The Insolvency Service,28/06/2023,Legal - Outsourced Investigation,Investigations & Enforcement Services,Tlt Llp,300047109,"1,296.22",Solicitors Investigations,Large,3574583240
DBT,The Insolvency Service,28/06/2023,Legal - Outsourced Investigation,Investigations & Enforcement Services,Tlt Llp,300047110,"35,043.82",Solicitors Investigations,Large,3574583240
DBT,The Insolvency Service,28/06/2023,Legal - Outsourced Investigation,Investigations & Enforcement Services,Tlt Llp,300047114,"15,303.17",Solicitors Investigations,Large,3574583240
DBT,The Insolvency Service,28/06/2023,Legal - Outsourced Investigation,Investigations & Enforcement Services,Tlt Llp,300047116,"2,771.99",Solicitors Investigations,Large,3574583240
DBT,The Insolvency Service,28/06/2023,Staff Costs - Non-Perms,Shared Contracts,ALEXANDER MANN SOLUTIONS,300047082,"167,698.56",Agency Staff & Contractor Costs,Large,7444926120
DBT,The Insolvency Service,28/06/2023,"Printing, Stationary, Postage & Confidential Waste",Projects,SAVAGE & GRAY DESIGN LIMITED,300047107,"7,980.00",Publications,,762962303
DBT,The Insolvency Service,28/06/2023,HR,People & Communications,Health Assurred Limited,300047108,597.30,Staff Welfare,SME,927524217
DBT,The Insolvency Service,29/06/2023,Other Costs,Official Receiver Services,Insolvency Service,300046904,910.00,Finance - OR Case Disbursements,Public Sector,
DBT,The Insolvency Service,29/06/2023,"Legal, Translation & Consultancy","Finance, Commercial, Sustainability & Property",Government Legal Department,300047081,"11,466.34",Legal Costs Other,Public Sector,888823066
DBT,The Insolvency Service,29/06/2023,ICT,Change and Technology Services,Ibm Uk Ltd,300047136,"2,419.20",IT - Run,Large,107328000
DBT,The Insolvency Service,29/06/2023,"Printing, Stationary, Postage & Confidential Waste",Shared Contracts,Restore Datashred (Data Solutions 2016 Ltd T/A Restore Data),300047092,"1,367.58",Confidential Waste,Large,240193143
DBT,The Insolvency Service,29/06/2023,Legal - Costs of Criminal Prosecutions and Advice,Legal Services Division,Harris Cuffaro And Nichols Solicitors,300047046,"6,184.50",Costs of Criminal Prosecutions and Advice,SME,688634967
DBT,The Insolvency Service,29/06/2023,Estates - Property,Projects,Advanced 365 Limited,300047132,"3,960.00",Property Major Works,Large,927547983
DBT,The Insolvency Service,29/06/2023,ICT,Change and Technology Services,Charterhouse Voice and Data Limited,300045660,"9,720.00",IT - Run,,311389028
DBT,The Insolvency Service,29/06/2023,Staff Costs - Non-Perms,Investigations & Enforcement Services,Red Snapper Recruitment,300047156,783.48,Agency Staff & Contractor Costs,SME,835435718
DBT,The Insolvency Service,29/06/2023,HR,People & Communications,Health Assurred Limited,300047106,597.30,Staff Welfare,SME,927524217
DBT,The Insolvency Service,29/06/2023,Staff Costs - Non-Perms,"Finance, Commercial, Sustainability & Property",Spinwell Global Ltd,300047131,"3,281.16",Agency Staff & Contractor Costs,,257189569
DBT,The Insolvency Service,29/06/2023,Other Costs,People & Communications,Church House Conference Centre Ltd,300047100,"7,614.00",Conferences & Room Hire,,563068242
DBT,The Insolvency Service,29/06/2023,Other Costs,People & Communications,Church House Conference Centre Ltd,300047101,"6,750.00",Conferences & Room Hire,,563068242
DBT,The Insolvency Service,30/06/2023,Training,Business Service Division,KPMG,300047167,"12,504.00",Training,Large,
DBT,The Insolvency Service,30/06/2023,Estates - Property,Projects,GPA (c/o BNP Paribas),300047166,"1,180.87",Furniture,,
DBT,The Insolvency Service,30/06/2023,Legal - Outsourced Investigation,Investigations & Enforcement Services,Tlt Llp,300047115,"2,146.12",Solicitors Investigations,Large,3574583240
